bitfinex-derivatives/quotes_ETHF0:USTF0_20250503
["timestamp","ask_amount","ask_price","bid_price","bid_amount"]
[1746256950748,4.72076653,1826.2,1826.1,2.5816]
[1746256952157,1.09495,1826.1,1826.0,11.1743]
[1746256952454,4.70792653,1826.1,1826.0,12.26931]
[1746256952647,3.65765,1826.1,1826.0,14.00281]
[1746256954754,3.65765,1826.1,1826.0,12.9078]
[1746256956448,4.70792653,1826.1,1826.0,9.7]
[1746256958455,4.70792653,1826.1,1826.0,8.8845]
[1746256958656,4.70792653,1826.1,1826.0,7.151]
[1746256959155,1.09507,1825.9,1825.8,4.8682]
[1746256959356,1.05027653,1825.9,1825.6,10.5244349]
[1746256959558,1.09519,1825.7,1825.6,10.5244349]
[1746256959758,1.09519,1825.7,1825.6,12.1848349]
[1746256960062,1.09519,1825.7,1825.6,10.5244349]
[1746256960063,2.79049,1825.7,1825.6,10.5244349]
[1746256960258,3.84076653,1825.7,1825.6,10.5244349]
[1746256966164,3.84076653,1825.7,1825.6,7.3166349]
[1746256966759,1.09531,1825.5,1825.4,5.6604]
[1746256966957,2.14558653,1825.5,1825.4,5.6604]
[1746256967158,1.09531,1825.5,1825.4,9.3784]
[1746256968767,1.09531,1825.5,1825.4,6.1706]
[1746256969466,2.14558653,1825.5,1825.4,6.1706]
[1746256970569,3.01818653,1825.5,1825.4,6.1706]
[1746256970768,3.01818653,1825.5,1825.4,3.718]
[1746256971157,3.83588653,1825.5,1825.4,3.718]
[1746256971362,2.96328653,1825.5,1825.4,6.50507]
[1746256972162,2.96328653,1825.5,1825.4,5.4097]
[1746256973069,4.67788653,1825.5,1825.4,5.4097]
[1746256974570,4.67788653,1825.5,1825.4,3.718]
[1746256975167,1.09537,1825.4,1825.3,2.4991]
[1746256975367,3.84224653,1825.4,1825.3,2.4991]
[1746256975669,2.79197,1825.4,1825.3,2.4991]
[1746256976273,2.79197,1825.4,1825.3,6.2171]
[1746256979375,3.84224653,1825.4,1825.3,6.2171]
[1746256985576,1.09537,1825.4,1825.3,7.31253]
[1746256986875,1.09537,1825.4,1825.3,6.2171]
[1746256987976,1.09537,1825.4,1825.3,10.52033]
[1746256993477,1.09535,1825.5,1825.4,1.09533]
[1746256993671,2.14562653,1825.5,1825.4,1.621]
[1746256993875,1.09535,1825.5,1825.4,1.621]
[1746256994072,1.09535,1825.5,1825.4,5.339]
[1746256994268,1.09535,1825.5,1825.4,6.43437]
[1746256995080,1.09529,1825.6,1825.5,1.09528]
[1746256995271,1.09529,1825.6,1825.5,4.52818]
[1746256995673,1.09529,1825.6,1825.5,7.96218]
[1746256995882,3.2078,1825.9,1825.5,3.4329]
[1746256996080,3.65534346,1826.1,1826.0,1.09501]
[1746256996380,2.65534346,1826.1,1826.0,7.73681]
[1746256997180,2.65534346,1826.1,1826.0,13.20091]
[1746256997581,2.65534346,1826.1,1826.0,13.63892343]
[1746256998083,6.57789519,1826.3,1826.2,1.09489]
[1746256998282,7.62817172,1826.3,1826.2,1.09489]
[1746256998676,7.62817172,1826.3,1826.2,2.76489]
[1746256999381,7.62817172,1826.3,1826.2,6.48289]
[1746256999581,7.62817172,1826.3,1826.2,5.388]
[1746257000085,7.62817172,1826.3,1826.2,7.0585]
[1746257000383,6.57789519,1826.3,1826.2,3.718]
[1746257000584,13.37227172,1826.3,1826.2,3.718]
[1746257000984,18.37227172,1826.3,1826.2,1.04808001]
[1746257001281,1.09495,1826.1,1826.0,3.434]
[1746257001487,1.09507,1825.9,1825.8,10.5244349]
[1746257001692,2.14534653,1825.9,1825.8,10.5244349]
[1746257002282,12.96674653,1825.9,1825.8,7.3166349]
[1746257002485,18.78674653,1825.9,1825.8,7.3166349]
[1746257002685,1.09513,1825.8,1825.7,10.97495236]
[1746257002886,3.89320653,1825.8,1825.7,10.97495236]
[1746257004587,3.88641918,1825.8,1825.7,10.97495236]
[1746257006188,1.09525,1825.6,1825.5,3.434]
[1746257006381,2.14552653,1825.6,1825.5,3.434]
[1746257006781,3.72742653,1825.6,1825.5,3.434]
[1746257016798,1.09531,1825.5,1825.4,1.09537]
[1746257017093,3.83638653,1825.5,1825.4,6.40707]
[1746257017295,2.78611,1825.5,1825.4,6.40707]
[1746257020799,2.78611,1825.5,1825.4,3.718]
[1746257021402,3.83638653,1825.5,1825.4,3.718]
[1746257023002,3.83638653,1825.5,1825.4,4.81337]
[1746257023194,3.83638653,1825.5,1825.4,3.718]
[1746257027512,3.83638653,1825.5,1825.4,4.81337]
[1746257027806,3.83638653,1825.5,1825.4,3.718]
[1746257030203,3.83638653,1825.5,1825.4,5.4391]
[1746257030606,3.83638653,1825.5,1825.4,6.53447]
[1746257031003,3.83638653,1825.5,1825.4,7.33627]
[1746257031306,3.83638653,1825.5,1825.4,6.2409]
[1746257033015,3.83638653,1825.5,1825.4,7.33627]
[1746257033407,3.83638653,1825.5,1825.4,6.2409]
[1746257039222,3.83638653,1825.5,1825.4,7.33627]
[1746257039515,3.83638653,1825.5,1825.4,3.718]
[1746257040320,3.83638653,1825.5,1825.4,4.81337]
[1746257040521,3.83638653,1825.5,1825.4,3.718]
[1746257040919,3.83638653,1825.5,1825.4,5.3172]
[1746257042019,0.8339,1825.6,1825.4,5.3172]
[1746257042214,1.09531,1825.6,1825.5,1.09529]
[1746257042410,1.09531,1825.6,1825.5,4.47709]
[1746257042614,1.09531,1825.6,1825.5,3.3818]
[1746257043214,1.09531,1825.6,1825.5,7.0998]
[1746257044922,5.82,1825.8,1825.5,15.3076]
[1746257045222,6.91514,1825.8,1825.7,1.09519]
[1746257045410,1.09519,1825.7,1825.6,6.16021]
[1746257045614,2.69709,1825.7,1825.6,6.16021]
[1746257045814,1.6019,1825.7,1825.6,6.16021]
[1746257048524,1.93627,1825.8,1825.7,1.09519]
[1746257048723,2.98654653,1825.8,1825.7,2.80379]
[1746257049022,1.09509,1825.9,1825.8,1.09513]
[1746257049222,2.69049,1825.9,1825.8,1.96863]
[1746257049424,3.74076653,1825.9,1825.8,1.96863]
[1746257049624,3.74076653,1825.9,1825.8,3.67723]
[1746257050123,3.74076653,1825.9,1825.8,7.39523]
[1746257051023,9.78568519,1826.3,1825.9,2.73769]
[1746257051227,9.74109172,1826.3,1826.2,1.09489]
[1746257051430,10.83592172,1826.3,1826.2,1.09489]
[1746257051625,12.57152172,1826.3,1826.2,1.09489]
[1746257052026,12.57152172,1826.3,1826.2,2.77929]
[1746257052225,10.42641519,1826.3,1826.2,6.49729]
[1746257052423,5.48301519,1826.3,1826.2,6.49729]
[1746257052830,7.21861519,1826.3,1826.2,6.49729]
[1746257053029,1.7356,1826.3,1826.2,6.49729]
[1746257053329,6.57780519,1826.4,1826.3,1.09483]
[1746257053528,6.57780519,1826.4,1826.3,2.69523]
[1746257054329,6.57780519,1826.4,1826.3,6.41323]
[1746257054528,8.32840519,1826.4,1826.3,6.41323]
[1746257055327,8.32840519,1826.4,1826.3,9.84823]
[1746257057229,2.84539,1826.4,1826.3,9.84823]
[1746257057431,3.89566653,1826.4,1826.3,9.84823]
[1746257058218,3.89566653,1826.4,1826.3,8.24783]
[1746257060330,2.80087653,1826.4,1826.3,8.24783]
[1746257060532,3.89566653,1826.4,1826.3,8.24783]
[1746257063435,3.89566653,1826.4,1826.3,7.153]
[1746257070636,3.89566653,1826.4,1826.3,8.24783]
[1746257073636,3.89566653,1826.4,1826.3,7.153]
[1746257073833,3.89566653,1826.4,1826.3,8.24783]
[1746257077037,3.89566653,1826.4,1826.3,7.153]
[1746257077238,3.89566653,1826.4,1826.3,8.24783]
[1746257080752,3.89566653,1826.4,1826.3,7.153]
[1746257082945,3.89566653,1826.4,1826.3,8.24783]
[1746257084345,3.89566653,1826.4,1826.3,7.153]
[1746257087045,3.89566653,1826.4,1826.3,8.24783]
[1746257088343,3.89566653,1826.4,1826.3,4.81283]
[1746257088743,3.89566653,1826.4,1826.3,6.43003]
[1746257091145,3.89566653,1826.4,1826.3,3.718]
[1746257092249,1.09483,1826.3,1826.2,4.54786]
[1746257092449,3.77280653,1826.3,1826.2,4.54786]
[1746257093247,3.77280653,1826.3,1826.2,8.26586]
[1746257101151,3.77280653,1826.3,1826.2,9.94676]
[1746257101552,1.09483,1826.3,1826.2,9.94676]
[1746257101753,1.09483,1826.3,1826.2,13.15456]
[1746257104455,2.14510653,1826.3,1826.2,13.15456]
[1746257105146,2.14510653,1826.3,1826.2,9.94676]
[1746257113255,2.14510653,1826.3,1826.2,8.8519]
[1746257113448,2.14510653,1826.3,1826.2,7.171]
[1746257114259,3.01430653,1826.3,1826.2,7.171]
[1746257115557,3.01430653,1826.3,1826.2,8.26589]
[1746257115855,3.01430653,1826.3,1826.2,7.171]
[1746257116755,3.01430653,1826.3,1826.2,8.26589]
[1746257119057,3.01430653,1826.3,1826.2,7.171]
[1746257120359,1.96403,1826.3,1826.2,7.171]
[1746257120552,3.01430653,1826.3,1826.2,7.171]
[1746257124258,2.69009,1826.4,1826.2,7.171]
[1746257124446,3.64954959,1826.5,1826.4,1.09477]
[1746257124851,3.64954959,1826.5,1826.4,2.76207]
[1746257125155,3.64954959,1826.5,1826.4,6.48007]
[1746257126661,3.64954959,1826.5,1826.4,9.68787]
[1746257128459,2.83102,1826.7,1826.4,23.14151361]
[1746257128761,3.88129653,1826.7,1826.6,1.09465]
[1746257129360,3.88129653,1826.7,1826.6,2.82525]
[1746257131662,2.14489653,1826.7,1826.6,2.82525]
[1746257131864,2.14489653,1826.7,1826.6,3.66905]
[1746257132353,3.77419653,1826.7,1826.6,3.66905]
[1746257135866,3.77419653,1826.7,1826.6,2.5744]
[1746257136164,5.43219653,1826.7,1826.6,1.09465]
[1746257136970,5.43219653,1826.7,1826.5,10.67136]
[1746257137268,1.7405,1826.6,1826.5,10.67136]
[1746257137472,2.83515,1826.6,1826.5,10.67136]
[1746257137766,1.7405,1826.6,1826.5,10.67136]
[1746257139170,2.83515,1826.6,1826.5,10.67136]
[1746257140560,1.7405,1826.6,1826.5,10.67136]
[1746257141870,2.83515,1826.6,1826.5,10.67136]
[1746257144866,2.83515,1826.6,1826.5,9.85126]
[1746257145074,3.88542653,1826.6,1826.5,8.24566]
[1746257145273,2.79077653,1826.6,1826.5,8.24566]
[1746257145577,3.88542653,1826.6,1826.5,8.24566]
[1746257147577,3.88542653,1826.6,1826.5,3.718]
[1746257148280,1.09471,1826.5,1826.4,6.6408]
[1746257148484,3.72668653,1826.5,1826.4,6.6408]
[1746257149086,3.72668653,1826.5,1826.4,10.3588]
[1746257149977,3.72668653,1826.5,1826.4,11.45357]
[1746257150177,3.72668653,1826.5,1826.4,10.3588]
[1746257152985,3.72668653,1826.5,1826.4,11.45357]
[1746257154985,3.72668653,1826.5,1826.4,10.3588]
[1746257155284,3.72668653,1826.5,1826.4,11.45357]
[1746257156586,3.72668653,1826.5,1826.4,8.24577]
[1746257157587,3.72668653,1826.5,1826.4,10.74247]
[1746257161596,1.0947,1826.6,1826.5,1.0947]
[1746257161893,2.14497653,1826.6,1826.5,3.6337]
[1746257162194,2.77422,1826.7,1826.6,1.09465]
[1746257162383,13.77183959,1826.9,1826.8,1.09453]
[1746257162587,9.00211612,1826.9,1826.8,1.09453]
[1746257162995,9.00211612,1826.9,1826.8,1.6829]
[1746257163197,9.00211612,1826.9,1826.8,5.4009]
[1746257163694,10.62811612,1826.9,1826.8,5.4009]
[1746257164897,6.97856653,1826.9,1826.8,5.4009]
[1746257166684,6.97856653,1826.9,1826.8,3.718]
[1746257169394,3.77076653,1826.9,1826.8,3.718]
[1746257174801,4.60146653,1826.9,1826.8,3.718]
[1746257177499,4.88936518,1826.9,1826.8,3.718]
[1746257178101,4.88936518,1826.9,1826.7,3.434]
[1746257178102,1.09453,1826.8,1826.7,3.434]
[1746257178396,4.73620653,1826.8,1826.7,3.434]
[1746257180499,8.23194152,1826.8,1826.7,3.434]
[1746257181002,1.09465,1826.6,1826.5,7.32573758]
[1746257181203,2.14492653,1826.6,1826.5,7.32573758]
[1746257182108,1.09471,1826.5,1826.4,11.85450758]
[1746257182299,5.53498653,1826.5,1826.4,11.85450758]
[1746257183103,5.53498653,1826.5,1826.4,15.57250758]
[1746257185606,5.53498653,1826.5,1826.4,8.24677]
[1746257185904,5.53498653,1826.5,1826.4,7.152]
[1746257187408,5.53498653,1826.5,1826.4,8.24677]
[1746257198308,5.53498653,1826.5,1826.4,7.152]
[1746257198816,5.53498653,1826.5,1826.4,3.718]
[1746257199215,1.09477,1826.4,1826.3,6.9534]
[1746257199410,3.75384653,1826.4,1826.3,6.9534]
[1746257199620,1.09483,1826.3,1826.2,11.55193758]
[1746257199804,4.67390653,1826.3,1826.2,10.75973758]
[1746257200007,4.67390653,1826.3,1826.2,7.32573758]
[1746257201814,1.09489,1826.2,1826.1,10.24763]
[1746257202014,3.83976653,1826.2,1826.1,10.24763]
[1746257202314,2.78949,1826.2,1826.1,10.24763]
[1746257204617,2.78949,1826.2,1826.1,7.03983]
[1746257209811,2.78949,1826.2,1826.1,5.9449]
[1746257210511,2.78949,1826.2,1826.1,7.03985]
[1746257210712,1.09488,1826.3,1826.2,1.09487]
[1746257210912,1.05027653,1826.3,1826.2,2.74297]
[1746257211108,6.91482,1826.4,1826.3,1.09483]
[1746257211417,1.09482,1826.4,1826.3,4.40913]
[1746257212118,1.09482,1826.4,1826.3,8.12713]
[1746257212520,1.09482,1826.4,1826.3,7.0323]
[1746257213623,1.09482,1826.4,1826.3,8.12713]
[1746257213918,1.09482,1826.4,1826.3,7.0323]
[1746257214319,1.09482,1826.4,1826.3,8.12713]
[1746257216415,2.5426,1826.6,1826.3,8.12709]
[1746257216622,2.14501653,1826.5,1826.4,5.0469]
[1746257217119,1.09474,1826.5,1826.4,9.85967]
[1746257219425,1.09474,1826.5,1826.4,8.7649]
[1746257219722,1.09474,1826.5,1826.4,9.85967]
[1746257221423,2.14501653,1826.5,1826.4,9.85967]
[1746257222021,2.14501653,1826.5,1826.4,8.7649]
[1746257222721,2.14501653,1826.5,1826.4,9.85967]
[1746257224530,2.14501653,1826.5,1826.4,8.7649]
[1746257224728,2.14501653,1826.5,1826.4,9.85967]
[1746257225221,2.14501653,1826.5,1826.4,8.7649]
[1746257225422,3.76501653,1826.5,1826.4,8.7649]
[1746257228728,3.76501653,1826.5,1826.4,9.85967]
[1746257228923,1.05027653,1826.5,1826.4,9.85967]
[1746257229436,2.65437653,1826.5,1826.4,9.85967]
[1746257229734,3.74908653,1826.5,1826.4,9.85967]
[1746257232032,0.8546,1826.7,1826.4,8.7649]
[1746257232234,4.74410959,1826.8,1826.6,1.09461]
[1746257232531,4.69982612,1826.8,1826.7,6.16819]
[1746257232727,10.35486959,1826.9,1826.8,1.09453]
[1746257232928,10.35486959,1826.9,1826.8,3.54453]
[1746257233131,11.40514612,1826.9,1826.8,6.168]
[1746257234135,11.40514612,1826.9,1826.8,7.26253]
[1746257236635,6.66107653,1826.9,1826.8,7.26253]
[1746257236934,5.83847653,1826.9,1826.8,7.26253]
[1746257237134,4.7882,1826.9,1826.8,7.26253]
[1746257237522,3.2078,1826.9,1826.8,7.26253]
[1746257239745,1.6132,1827.0,1826.9,1.09447]
[1746257240034,1.6132,1827.0,1826.9,3.62717]
[1746257240234,1.6132,1827.0,1826.9,7.34517]
[1746257240437,5.09667,1827.1,1827.0,1.09441]
[1746257240738,6.14694653,1827.1,1827.0,7.08531]
[1746257241035,7.89414653,1827.1,1827.0,7.08531]
[1746257241227,7.89414653,1827.1,1827.0,10.80331]
[1746257243333,4.68634653,1827.1,1827.0,10.80331]
[1746257244334,2.14464653,1827.1,1827.0,10.80331]
[1746257244636,0.02917345,1827.6,1827.5,1.09411]
[1746257244844,5.45898941,1827.7,1827.6,1.09405]
[1746257245036,5.45898941,1827.7,1827.6,2.73855]
[1746257245340,5.45898941,1827.7,1827.6,3.57525]
[1746257249443,1.6466,1827.8,1827.7,1.09399]
[1746257249642,1.6466,1827.8,1827.7,4.30179]
[1746257250147,2.74053,1827.8,1827.7,6.9258]
[1746257250440,10.94833,1827.8,1827.7,7.149]
[1746257250641,5.94833,1827.8,1827.7,7.149]
[1746257250943,10.94833,1827.8,1827.7,7.149]
[1746257251138,5.94833,1827.8,1827.7,3.431]
[1746257251344,10.94833,1827.8,1827.7,3.431]
[1746257252046,1.09411,1827.5,1827.4,3.431]
[1746257252240,1.09411,1827.5,1827.4,4.52517]
[1746257252442,6.09411,1827.5,1827.4,3.431]
[1746257252843,6.90081,1827.5,1827.4,3.431]
[1746257253450,0.8067,1827.5,1827.4,4.52517]
[1746257253943,3.61521,1827.5,1827.4,4.52517]
[1746257254448,4.66548653,1827.5,1827.4,4.52517]
[1746257255548,3.57137653,1827.5,1827.4,4.52517]
[1746257256251,4.66548653,1827.5,1827.4,4.52517]
[1746257256842,3.57137653,1827.5,1827.4,4.52517]
[1746257257149,3.57137653,1827.5,1827.4,8.24317]
[1746257257550,4.66548653,1827.5,1827.4,8.24317]
[1746257258250,3.66548653,1827.5,1827.4,8.24317]
[1746257261250,3.2078,1827.8,1827.4,8.24317]
[1746257261557,0.02,1828.1,1828.0,1.09381]
[1746257261745,5.93525,1828.3,1828.1,1.09373]
[1746257261948,1.6338,1828.2,1828.1,1.09373]
[1746257262147,0.6338,1828.2,1828.1,1.09373]
[1746257262347,0.6338,1828.2,1828.1,2.80323]
[1746257264054,0.6338,1828.2,1828.0,8.24277]
[1746257264242,1.72751,1828.2,1828.0,8.24277]
[1746257264443,0.8199,1828.1,1828.0,8.24277]
[1746257264646,1.659,1828.1,1828.0,8.24277]
[1746257265753,3.2739,1828.1,1828.0,8.24277]
[1746257268257,4.36765,1828.1,1828.0,8.24277]
[1746257268555,4.36765,1828.1,1828.0,7.149]
[1746257269250,3.2739,1828.1,1828.0,8.24281]
[1746257270558,4.36765,1828.1,1828.0,7.149]
[1746257270857,4.36765,1828.1,1828.0,3.718]
[1746257271157,1.09381,1828.0,1827.9,3.43]
[1746257271354,2.78711,1828.0,1827.9,3.43]
[1746257272258,2.78711,1828.0,1827.9,4.52387]
[1746257273155,2.78711,1828.0,1827.9,3.43]
[1746257273555,2.78711,1828.0,1827.9,4.52387]
[1746257275659,1.09387,1827.9,1827.8,1.09389]
[1746257275860,2.81197,1827.9,1827.8,4.58989]
[1746257276157,2.81197,1827.9,1827.8,8.30789]
[1746257279057,2.81197,1827.9,1827.8,7.214]
[1746257279258,1.09393,1827.8,1827.7,3.2078]
[1746257279453,4.36463,1827.8,1827.7,3.2078]
[1746257285163,1.09399,1827.7,1827.6,3.496]
[1746257285362,2.74319,1827.7,1827.6,3.496]
[1746257290767,1.09405,1827.6,1827.5,9.1496]
[1746257290960,2.68275,1827.6,1827.5,7.436]
[1746257291162,2.68275,1827.6,1827.5,3.718]
[1746257291563,5.89055,1827.6,1827.5,3.718]
[1746257292767,6.17794706,1827.6,1827.5,3.718]
[1746257293168,5.89055,1827.6,1827.5,3.718]
[1746257293366,6.17799641,1827.6,1827.5,3.718]
[1746257294268,11.99799641,1827.6,1827.5,3.718]
[1746257295059,15.71599641,1827.6,1827.5,3.718]
[1746257296167,11.71055,1827.6,1827.5,3.718]
[1746257296355,10.12185,1827.6,1827.5,3.718]
[1746257296561,6.91405,1827.6,1827.5,3.718]
[1746257296767,6.91405,1827.6,1827.5,6.42191]
[1746257296967,6.91405,1827.6,1827.5,8.07531]
[1746257297167,6.91405,1827.6,1827.5,11.79331]
[1746257297355,6.91405,1827.6,1827.5,10.6992]
[1746257298468,6.91405,1827.6,1827.5,6.9812]
[1746257298971,1.09402,1827.7,1827.6,1.09401]
[1746257299167,1.09402,1827.7,1827.6,5.0846]
[1746257305766,2.78592,1827.7,1827.6,5.0846]
[1746257306874,3.07371751,1827.7,1827.6,5.0846]
[1746257307467,3.07376293,1827.7,1827.6,5.0846]
[1746257308174,4.66676293,1827.7,1827.6,5.0846]
[1746257308873,4.66676293,1827.7,1827.6,3.497]
[1746257311075,4.66683457,1827.7,1827.6,3.497]
[1746257312375,7.87463457,1827.7,1827.6,3.497]
[1746257312770,7.87465849,1827.7,1827.6,3.497]
[1746257314476,7.58672,1827.7,1827.6,3.497]
[1746257314682,7.87469248,1827.7,1827.6,3.497]
[1746257315083,7.87469248,1827.7,1827.5,0.7905]
[1746257315084,1.09411,1827.5,1827.4,1.7426]
[1746257316783,2.97385603,1827.5,1827.4,1.7426]
[1746257316979,2.9738594,1827.5,1827.4,1.7426]
[1746257317179,2.68591,1827.5,1827.4,1.7426]
[1746257317586,2.97384056,1827.5,1827.4,1.7426]
[1746257318085,2.97384588,1827.5,1827.4,1.7426]
[1746257319185,2.68591,1827.5,1827.4,1.7426]
[1746257320387,2.97380578,1827.5,1827.4,1.7426]
[1746257321484,2.68591,1827.5,1827.4,1.7426]
[1746257325388,2.97374873,1827.5,1827.4,1.7426]
[1746257326687,1.09417,1827.4,1827.3,4.3081]
[1746257326887,3.68097,1827.4,1827.3,4.3081]
[1746257327188,3.68097,1827.4,1827.3,8.0261]
[1746257327691,3.68097,1827.4,1827.3,9.7457]
[1746257329092,2.82817,1827.4,1827.3,9.7457]
[1746257329587,1.09417,1827.4,1827.3,9.7457]
[1746257330190,1.09417,1827.4,1827.3,6.0277]
[1746257331193,1.09417,1827.4,1827.3,9.7457]
[1746257335299,1.09417,1827.4,1827.3,6.0277]
[1746257337105,1.09417,1827.4,1827.3,9.7457]
[1746257339103,1.09417,1827.4,1827.3,6.0277]
[1746257340106,1.09417,1827.4,1827.3,9.7457]
[1746257341108,1.09417,1827.4,1827.3,6.0277]
[1746257343109,1.09417,1827.4,1827.3,9.7457]
[1746257344105,1.09417,1827.4,1827.3,6.0277]
[1746257345107,1.09417,1827.4,1827.3,9.7457]
[1746257348108,1.09417,1827.4,1827.3,6.0277]
[1746257349111,1.09417,1827.4,1827.3,9.7457]
[1746257350210,1.09417,1827.4,1827.3,6.0277]
[1746257353214,1.09417,1827.4,1827.3,9.7457]
[1746257354116,1.09417,1827.4,1827.3,6.0277]
[1746257355115,1.09417,1827.4,1827.3,9.7457]
[1746257356121,1.09417,1827.4,1827.3,6.0277]
[1746257357518,1.38255431,1827.4,1827.3,6.0277]
[1746257357710,2.22535431,1827.4,1827.3,6.0277]
[1746257358712,3.91695431,1827.4,1827.3,6.0277]
[1746257360121,3.91694391,1827.4,1827.3,6.0277]
[1746257361920,3.91692825,1827.4,1827.3,6.0277]
[1746257363618,3.91692825,1827.4,1827.3,2.5377]
[1746257363822,3.91691527,1827.4,1827.3,2.5377]
[1746257364227,1.09423,1827.3,1827.2,10.72923009]
[1746257364416,3.79597527,1827.3,1827.2,10.72923009]
[1746257367020,12.00377527,1827.3,1827.2,5.98981009]
[1746257367324,17.82344808,1827.3,1827.2,5.98981009]
[1746257368215,21.54144808,1827.3,1827.2,5.98981009]
[1746257369025,21.54129628,1827.3,1827.2,5.98981009]
[1746257370124,21.5411621,1827.3,1827.2,5.98981009]
[1746257370427,1.09441,1827.0,1826.9,3.474]
[1746257371117,3.52181,1827.0,1826.9,3.474]
[1746257372020,3.80936667,1827.0,1826.9,3.474]
[1746257372228,3.52181,1827.0,1826.9,3.474]
[1746257372525,1.09447,1826.9,1826.8,2.4553]
[1746257372823,2.69097,1826.9,1826.8,2.4553]
[1746257373127,2.69097,1826.9,1826.8,6.1733]
[1746257374218,2.69097,1826.9,1826.8,2.4553]
[1746257374424,1.09447,1826.9,1826.8,2.4553]
[1746257376230,1.09447,1826.9,1826.8,6.1733]
[1746257377136,1.09447,1826.9,1826.8,2.4553]
[1746257378132,1.09447,1826.9,1826.8,6.1733]
[1746257379135,1.09447,1826.9,1826.8,2.4553]
[1746257380135,1.09447,1826.9,1826.8,6.1733]
[1746257380432,2.4982,1827.0,1826.8,6.1733]
[1746257380632,1.09447,1826.9,1826.8,6.1733]
[1746257383537,2.76297,1826.9,1826.8,6.1733]
[1746257384237,2.76297,1826.9,1826.8,2.4553]
[1746257385431,1.09447,1826.9,1826.8,2.4553]
[1746257385934,4.30227,1826.9,1826.8,0.8678]
[1746257386135,5.99577,1826.9,1826.8,0.8678]
[1746257387434,5.99577,1826.9,1826.8,2.4776]
[1746257391841,6.28318247,1826.9,1826.8,2.4776]
[1746257395746,3.07538247,1826.9,1826.8,2.4776]
[1746257395943,18.74499247,1826.9,1826.2,3.2078]
[1746257396148,4.30257,1826.4,1826.3,3.2538]
[1746257396545,4.59033802,1826.4,1826.3,3.2538]
[1746257397051,4.30257,1826.4,1826.3,3.2538]
[1746257402258,5.98667,1826.4,1826.3,2.4016]
[1746257402452,4.8919,1826.4,1826.1,45.0696]
[1746257402657,1.09489,1826.2,1826.1,45.9309]
[1746257404063,1.09489,1826.2,1826.1,47.5714]
[1746257408263,1.09489,1826.2,1826.1,48.66635]
[1746257413066,8.55672,1826.6,1826.1,52.5714]
[1746257413255,1.09482,1826.4,1826.3,1.09482]
[1746257413460,1.09483,1826.3,1826.2,4.30264]
[1746257414161,1.09483,1826.3,1826.2,8.02064]
[1746257415166,1.09483,1826.3,1826.2,8.02064]
[1746257417071,1.715,1826.6,1826.2,6.9258]
[1746257417261,1.09477,1826.5,1826.4,1.09476]
[1746257417460,1.09477,1826.5,1826.4,3.466]
[1746257418269,1.09469,1826.6,1826.5,1.09468]
[1746257419169,1.09469,1826.6,1826.5,4.81268]
[1746257421369,4.30244,1826.7,1826.6,1.09465]
[1746257421574,1.09465,1826.6,1826.5,4.81266]
[1746257423871,1.09465,1826.6,1826.5,5.66596]
[1746257424170,1.09465,1826.6,1826.5,7.37506]
[1746257428079,1.09465,1826.6,1826.5,8.19706]
[1746257429878,3.64323,1826.7,1826.6,1.09465]
[1746257430080,3.64323,1826.7,1826.6,2.80445]
[1746257432281,3.64323,1826.7,1826.6,1.7098]
[1746257433480,3.64323,1826.7,1826.6,2.80445]
[1746257436682,2.5486,1826.7,1826.6,2.80445]
[1746257436886,1.09453,1826.9,1826.6,1.7098]
[1746257437085,1.09453,1826.9,1826.8,1.09451]
[1746257437680,7.59765,1827.0,1826.9,1.09447]
[1746257437882,4.8657,1827.0,1826.9,1.09447]
[1746257438181,4.8657,1827.0,1826.9,7.25197]
[1746257438481,3.2078,1827.0,1826.9,7.25197]
[1746257439676,3.57947,1827.1,1827.0,1.09441]
[1746257439878,3.57947,1827.1,1827.0,6.15411]
[1746257440077,3.57947,1827.1,1827.0,9.87211]
[1746257442783,1.09433,1827.2,1827.1,1.09433]
[1746257443080,1.09433,1827.2,1827.1,3.54133]
[1746257443780,1.09433,1827.2,1827.1,0.8128]
[1746257443980,1.09435,1827.1,1827.0,8.27236]
[1746257444178,1.94855,1827.1,1827.0,8.27236]
[1746257445484,1.94855,1827.1,1827.0,9.96466]
[1746257446988,1.09435,1827.1,1827.0,9.96466]
[1746257447688,2.70024,1827.2,1827.1,1.09435]
[1746257447882,2.70024,1827.2,1827.1,2.75065]
[1746257459092,2.70024,1827.2,1827.1,1.09435]
[1746257461488,1.09435,1827.1,1827.0,9.86778]
[1746257461694,3.63395,1827.1,1827.0,9.86778]
[1746257462587,3.63395,1827.1,1827.0,3.718]
[1746257463091,1.09441,1827.0,1826.9,6.6578]
[1746257463287,2.80441,1827.0,1826.9,6.6578]
[1746257464196,2.80441,1827.0,1826.9,10.3758]
[1746257464497,2.80441,1827.0,1826.9,11.47027]
[1746257465183,2.80441,1827.0,1826.9,10.3758]
[1746257469198,2.80441,1827.0,1826.9,7.168]
[1746257475100,2.80441,1827.0,1826.9,3.45]
[1746257475304,1.09441,1827.0,1826.9,7.75227]
[1746257475606,1.09441,1827.0,1826.9,3.45]
[1746257476098,1.09441,1827.0,1826.9,9.97007]
[1746257477109,2.72721,1827.0,1826.9,9.97007]
[1746257477709,2.72721,1827.0,1826.9,8.8756]
[1746257478302,2.72721,1827.0,1826.9,6.52007]
[1746257478511,1.09441,1827.0,1826.9,9.97007]
[1746257479311,1.09441,1827.0,1826.9,13.17783]
[1746257480002,1.09441,1827.1,1827.0,1.0944]
[1746257480203,1.09441,1827.1,1827.0,1.937]
[1746257480614,4.30214,1827.2,1827.1,1.09435]
[1746257480810,4.30214,1827.2,1827.1,1.93375]
[1746257484717,3.2078,1827.2,1827.1,1.93375]
[1746257485317,4.30209,1827.2,1827.1,1.93375]